bitfinex/quotes_BTCUSD_20260101
["timestamp","ask_amount","ask_price","bid_price","bid_amount"]
[1767247933701,0.04705312,87677.0,87661.0,0.0213988]
[1767247933847,0.04705312,87677.0,87661.0,0.03280638]
[1767247934306,0.04705312,87677.0,87661.0,0.0213988]
[1767247934461,0.04705312,87677.0,87661.0,0.03280638]
[1767247934850,0.0001459,87691.0,87677.0,0.000455]
[1767247935050,0.04719902,87691.0,87677.0,0.000455]
[1767247935273,0.04773782,87688.0,87677.0,0.000455]
[1767247935464,0.04773782,87688.0,87674.0,0.01144]
[1767247942729,0.04773782,87688.0,87674.0,0.011346]
[1767247944373,0.04773782,87688.0,87674.0,0.00255124]
[1767247944573,0.04719896,87688.0,87674.0,0.00255124]
[1767247947817,0.04719896,87688.0,87675.0,0.02287]
[1767247948014,0.04719896,87688.0,87674.0,0.00255124]
[1767247949827,0.04897446,87686.0,87674.0,0.00255124]
[1767247950486,0.0491203,87686.0,87674.0,0.00255124]
[1767247960396,0.0491203,87686.0,87674.0,2e-08]
[1767247964437,0.0491203,87686.0,87667.0,0.01144]
[1767247965678,0.04897446,87684.0,87667.0,0.01144]
[1767247966681,0.04897446,87684.0,87666.0,0.01144]
[1767247966682,0.04897446,87679.0,87666.0,0.01144]
[1767247967049,0.04897446,87679.0,87665.0,0.01144]
[1767247978038,0.04617316,87679.0,87664.0,0.01144]
[1767247980473,0.56244631,87674.0,87664.0,0.01144]
[1767247981489,0.04617316,87674.0,87664.0,0.01144]
[1767247984404,0.04562416,87674.0,87664.0,0.01144]
[1767247984598,0.04617316,87679.0,87664.0,0.01144]
[1767247998250,0.04617316,87679.0,87665.0,0.02287]
[1767247998453,0.04617316,87679.0,87664.0,0.01144]
[1767248005201,0.04617316,87679.0,87665.0,0.01140706]
[1767248007187,0.04617316,87679.0,87664.0,0.02284719]
[1767248007363,0.04617316,87679.0,87664.0,0.01144]
[1767248007569,0.04617316,87679.0,87664.0,0.02284719]
[1767248008214,0.04617316,87679.0,87664.0,0.01144]
[1767248008413,0.04617316,87679.0,87664.0,0.02284719]
[1767248009544,0.04617316,87679.0,87664.0,0.01144]
[1767248009834,0.04617316,87679.0,87664.0,0.02284719]
[1767248010028,0.04617316,87679.0,87664.0,0.01144]
[1767248019773,0.04617316,87679.0,87664.0,0.02284719]
[1767248020270,0.51627315,87674.0,87664.0,0.01144]
[1767248020658,0.51627315,87674.0,87664.0,0.02284719]
[1767248021299,0.51627315,87674.0,87664.0,0.05743742]
[1767248021511,0.04617316,87679.0,87664.0,0.05743742]
[1767248022021,0.04617316,87679.0,87665.0,0.01140706]
[1767248022222,0.04617316,87679.0,87664.0,0.05743742]
[1767248022839,0.04617316,87679.0,87665.0,0.01140706]
[1767248022986,0.04617316,87679.0,87664.0,0.05743742]
[1767248023609,0.04617316,87679.0,87665.0,0.01140706]
[1767248023927,0.04617316,87679.0,87664.0,0.05743742]
[1767248024131,0.04617316,87679.0,87665.0,0.01140706]
[1767248024437,0.04617316,87679.0,87664.0,0.05743742]
[1767248024842,0.04617316,87679.0,87665.0,0.01140706]
[1767248025635,0.04617316,87679.0,87664.0,0.05743742]
[1767248025783,0.04617316,87679.0,87665.0,0.01140706]
[1767248025986,0.04617316,87679.0,87664.0,0.04603023]
[1767248026182,0.04617316,87679.0,87664.0,0.05743742]
[1767248027148,0.04617316,87679.0,87664.0,0.04603023]
[1767248027451,0.04617316,87679.0,87664.0,0.05743742]
[1767248029354,0.04617316,87679.0,87664.0,0.04603023]
[1767248030003,0.04617316,87679.0,87664.0,0.05743742]
[1767248030205,0.04617316,87679.0,87664.0,0.04603023]
[1767248030635,0.04617316,87679.0,87664.0,0.05743742]
[1767248030834,0.04617316,87679.0,87664.0,0.04603023]
[1767248031081,0.04617316,87679.0,87664.0,0.05743742]
[1767248031486,0.04617316,87679.0,87664.0,0.04603023]
[1767248031693,0.04617316,87679.0,87664.0,0.05743742]
[1767248033108,0.04617316,87679.0,87664.0,0.04603023]
[1767248033332,0.04617316,87679.0,87665.0,0.01140706]
[1767248033459,0.51627224,87680.0,87664.0,0.01144]
[1767248033658,0.00014584,87682.0,87666.0,0.03459023]
[1767248033910,0.51627224,87680.0,87666.0,0.03459023]
[1767248036047,0.51627224,87680.0,87667.0,0.01144]
[1767248039699,0.56575485,87680.0,87667.0,0.01144]
[1767248041987,0.04948261,87679.0,87667.0,0.01144]
[1767248049424,0.04948261,87679.0,87667.0,0.0228468]
[1767248049631,0.04948261,87679.0,87668.0,0.01140667]
[1767248049839,0.04948261,87679.0,87669.0,0.01140654]
[1767248050240,0.04948261,87679.0,87667.0,0.07988019]
[1767248050553,0.04948261,87679.0,87669.0,0.01140654]
[1767248050963,0.04948261,87679.0,87670.0,0.01140641]
[1767248051318,0.04948261,87679.0,87669.0,0.01140654]
[1767248051500,0.04948261,87679.0,87670.0,0.01140641]
[1767248052067,0.04948261,87679.0,87671.0,0.01140628]
[1767248053620,0.04948261,87679.0,87671.0,0.00984584]
[1767248053963,0.04948261,87679.0,87670.0,0.01140641]
[1767248054195,0.04948261,87679.0,87671.0,0.01140628]
[1767248054407,0.04948261,87679.0,87672.0,0.01140615]
[1767248054547,0.04948261,87679.0,87670.0,0.01140641]
[1767248055550,0.04948261,87679.0,87672.0,0.01140615]
[1767248055901,0.04948261,87679.0,87670.0,0.01140641]
[1767248056047,0.04948261,87679.0,87668.0,0.01140667]
[1767248056261,0.04948261,87679.0,87669.0,0.01140654]
[1767248056923,0.51627224,87681.0,87669.0,0.04599677]
[1767248057132,0.51627224,87681.0,87670.0,0.01140641]
[1767248057447,0.51627224,87681.0,87669.0,0.04599677]
[1767248057725,0.51627224,87681.0,87668.0,0.01140667]
[1767248058606,0.51627224,87681.0,87669.0,0.01140654]
[1767248058823,0.51627224,87681.0,87668.0,0.01140667]
[1767248059341,0.51627224,87681.0,87669.0,0.01140654]
[1767248060319,0.51627224,87681.0,87670.0,0.01140641]
[1767248060781,0.51627224,87681.0,87669.0,0.01140654]
[1767248061486,0.51627224,87681.0,87668.0,0.01140667]
[1767248061647,0.51627224,87681.0,87669.0,0.01140654]
[1767248062456,0.51627224,87681.0,87668.0,0.01140667]
[1767248062910,0.04962845,87682.0,87668.0,0.01140667]
[1767248063113,0.51627224,87680.0,87669.0,0.01140654]
[1767248063883,0.51627224,87680.0,87667.0,0.0228468]
[1767248064089,0.51627224,87680.0,87668.0,0.01140667]
[1767248064692,0.51627224,87680.0,87667.0,0.0228468]
[1767248065225,0.51627224,87680.0,87668.0,0.01140667]
[1767248067057,0.51627224,87680.0,87667.0,0.0228468]
[1767248067238,0.51627224,87680.0,87668.0,0.01140667]
[1767248067826,0.51627224,87680.0,87667.0,0.0228468]
[1767248068397,0.51627224,87680.0,87668.0,0.01140667]
[1767248068891,0.51627224,87680.0,87669.0,0.03459023]
[1767248069093,0.51627224,87680.0,87670.0,0.03459023]
[1767248069735,0.51627224,87680.0,87667.0,0.0228468]
[1767248069736,0.00014584,87682.0,87671.0,0.01140628]
[1767248069903,0.00014584,87682.0,87671.0,0.03459023]
[1767248072111,0.51627224,87681.0,87671.0,0.03459023]
[1767248074043,0.00014584,87682.0,87671.0,0.03459023]
[1767248074249,0.51627224,87681.0,87673.0,0.01140602]
[1767248074446,0.51627224,87681.0,87674.0,0.01144]
[1767248075209,0.00014584,87682.0,87674.0,0.02284589]
[1767248075439,0.00014584,87682.0,87675.0,0.01140575]
[1767248075611,0.00014584,87682.0,87674.0,0.02284589]
[1767248075868,0.00014584,87682.0,87674.0,0.01144]
[1767248076003,0.00014584,87682.0,87674.0,0.02284589]
[1767248076401,0.00014584,87682.0,87675.0,0.01140575]
[1767248077728,8.001e-05,87677.0,87675.0,0.01140575]
[1767248078279,8.001e-05,87677.0,87674.0,0.02284589]
[1767248082761,8.001e-05,87677.0,87674.0,0.01144]
[1767248082997,8.001e-05,87677.0,87674.0,0.02284589]
[1767248083149,8.001e-05,87677.0,87674.0,0.01144]
[1767248083349,8.001e-05,87677.0,87674.0,0.02284589]
[1767248084160,8.001e-05,87677.0,87674.0,0.01144]
[1767248084756,8.001e-05,87677.0,87674.0,0.02284589]
[1767248086105,8.001e-05,87677.0,87674.0,0.01144]
[1767248086476,8.001e-05,87677.0,87674.0,0.010891]
[1767248087101,8.001e-05,87677.0,87674.0,0.02229689]
[1767248087504,8.001e-05,87677.0,87674.0,0.010891]
[1767248089638,8.001e-05,87677.0,87674.0,0.02229689]
[1767248090071,8.001e-05,87677.0,87674.0,0.010891]
[1767248090285,8.001e-05,87677.0,87674.0,0.02229689]
[1767248091263,8.001e-05,87677.0,87674.0,0.010891]
[1767248091803,8.001e-05,87677.0,87674.0,0.02229689]
[1767248092550,8.001e-05,87677.0,87674.0,0.010891]
[1767248093530,8.001e-05,87677.0,87674.0,0.02229689]
[1767248096569,0.00014584,87682.0,87674.0,0.010891]
[1767248096771,0.00014584,87682.0,87677.0,8e-05]
[1767248097082,0.00014584,87682.0,87674.0,0.02229689]
[1767248097296,0.00014584,87682.0,87674.0,0.010891]
[1767248097619,0.00014584,87682.0,87675.0,0.01140575]
[1767248097942,0.00014584,87682.0,87674.0,0.02229689]
[1767248098143,0.00014584,87682.0,87675.0,0.01140575]
[1767248098559,0.00014584,87682.0,87674.0,0.02229689]
[1767248098762,0.00014584,87682.0,87678.0,8e-05]
[1767248099161,0.04548061,87682.0,87678.0,8e-05]
[1767248099388,0.00014584,87682.0,87678.0,8e-05]
[1767248101530,0.00014584,87682.0,87676.0,0.01140562]
[1767248101731,0.00014584,87682.0,87675.0,0.01140575]
[1767248102134,0.00014584,87682.0,87676.0,0.01140562]
[1767248102351,0.00014584,87682.0,87674.0,0.02229689]
[1767248102508,0.00014584,87682.0,87674.0,0.010891]
[1767248102929,0.00014584,87682.0,87674.0,0.02229689]
[1767248103136,0.04548061,87682.0,87675.0,0.01140575]
[1767248103653,0.04548061,87682.0,87676.0,0.01140562]
[1767248106985,0.04548061,87682.0,87674.0,0.02229689]
[1767248107316,0.04548061,87682.0,87675.0,0.01140575]
[1767248109082,0.04548061,87682.0,87674.0,0.02229689]
[1767248110072,0.04548061,87682.0,87674.0,0.010891]
[1767248110245,0.04548061,87682.0,87674.0,0.02229689]
[1767248110752,0.04548061,87682.0,87675.0,0.01140575]
[1767248111876,0.04548061,87682.0,87676.0,0.01140562]
[1767248112246,0.04548061,87682.0,87675.0,0.01140575]
[1767248114212,0.04548061,87682.0,87676.0,0.01140562]
[1767248115002,0.04548061,87682.0,87675.0,0.01140575]
[1767248115538,0.51617999,87685.0,87682.0,0.00040316]
[1767248115740,0.00053535,87687.0,87682.0,0.00040316]
[1767248116153,0.00053535,87687.0,87677.0,0.03459023]
[1767248116351,0.00053535,87687.0,87677.0,0.04599572]
[1767248116545,0.00053535,87687.0,87677.0,0.03459023]
[1767248117094,0.00053535,87687.0,87677.0,0.04599572]
[1767248117568,0.00053535,87687.0,87677.0,0.01140549]
[1767248117991,0.00053535,87687.0,87678.0,0.01140536]
[1767248118134,0.51671534,87687.0,87678.0,0.01140536]
[1767248118552,0.51671534,87687.0,87677.0,0.01140549]
[1767248118917,0.51671534,87687.0,87678.0,0.01140536]
[1767248119770,0.51671534,87687.0,87677.0,0.01140549]
[1767248119950,0.51671534,87687.0,87678.0,0.01140536]
[1767248120501,0.51671534,87687.0,87677.0,0.01140549]
[1767248120921,0.51671534,87687.0,87678.0,0.01140536]
[1767248121088,0.51671534,87687.0,87677.0,0.01140549]
[1767248121332,0.51671534,87687.0,87678.0,0.01140536]
[1767248122116,0.51671534,87687.0,87675.0,0.01140575]
[1767248122371,0.51671534,87687.0,87677.0,0.01140549]
[1767248122564,0.0477272,87686.0,87677.0,0.01140549]
[1767248123253,0.0477272,87686.0,87676.0,0.01140562]
[1767248124219,0.0477272,87686.0,87677.0,0.01140549]
[1767248125933,0.0477272,87686.0,87676.0,0.01140562]
[1767248126131,0.0477272,87686.0,87677.0,0.01140549]
[1767248126411,0.0477272,87686.0,87678.0,0.00665549]
[1767248126557,0.0477272,87686.0,87677.0,0.01140549]
[1767248127399,0.0477272,87686.0,87679.0,0.01140523]
[1767248127605,0.0477272,87686.0,87678.0,0.01140536]
[1767248128148,0.0477272,87686.0,87677.0,0.01140549]
[1767248129005,0.0477272,87686.0,87678.0,0.01140536]
[1767248130607,0.0477272,87686.0,87679.0,0.01140523]
[1767248131516,0.0477272,87686.0,87677.0,0.01140549]
[1767248131703,0.0477272,87686.0,87676.0,0.01140562]
[1767248132936,0.0477272,87686.0,87677.0,0.01140549]
[1767248133103,0.0477272,87686.0,87678.0,0.01140536]
[1767248133512,0.0477272,87686.0,87679.0,0.01140523]
[1767248135463,0.0477272,87686.0,87678.0,0.01140536]
[1767248135670,0.0477272,87686.0,87679.0,0.01140523]
[1767248137761,0.0477272,87686.0,87678.0,0.01140536]
[1767248137936,0.0477272,87686.0,87679.0,0.01140523]
[1767248138534,0.0477272,87686.0,87678.0,0.01140536]
[1767248138742,0.0477272,87686.0,87679.0,0.01140523]
[1767248139337,0.0477272,87686.0,87678.0,0.01140536]
[1767248139619,0.0477272,87686.0,87679.0,0.01140523]
[1767248141312,0.0477272,87686.0,87678.0,0.01140536]
[1767248141479,0.0477272,87686.0,87679.0,0.01140523]
[1767248141891,0.0477272,87686.0,87677.0,0.01140549]
[1767248142096,0.0477272,87686.0,87678.0,0.01140536]
[1767248142405,0.0477272,87686.0,87679.0,0.01140523]
[1767248142703,0.0477272,87686.0,87677.0,0.01140549]
[1767248142908,0.0477272,87686.0,87678.0,0.01140536]
[1767248144431,0.0477272,87686.0,87677.0,0.01140549]
[1767248144773,0.0477272,87686.0,87678.0,0.01140536]
[1767248145500,0.0477272,87686.0,87679.0,0.01140523]
[1767248145675,0.0477272,87686.0,87678.0,0.01140536]
[1767248145875,0.0477272,87686.0,87679.0,0.01140523]
[1767248146098,0.0477272,87686.0,87677.0,0.01140549]
[1767248147376,0.0477272,87686.0,87678.0,0.01140536]
[1767248147644,0.0477272,87686.0,87679.0,0.01140523]
[1767248147851,0.0477272,87686.0,87678.0,0.01140536]
[1767248148049,0.0477272,87686.0,87679.0,0.01140523]
[1767248148312,0.0477272,87686.0,87678.0,0.01140536]
[1767248148937,0.0477272,87686.0,87679.0,0.01140523]
[1767248149967,0.0477272,87686.0,87678.0,0.01140536]
[1767248150273,0.0477272,87686.0,87677.0,0.01140549]
[1767248150434,0.0477272,87686.0,87678.0,0.01140536]
[1767248153234,0.0477272,87686.0,87677.0,0.01140549]
[1767248153682,0.0477272,87686.0,87678.0,0.01140536]
[1767248154894,0.0477272,87686.0,87679.0,0.01140523]
[1767248155107,0.0477272,87686.0,87678.0,0.01140536]
[1767248157101,0.0477272,87686.0,87679.0,0.01140523]
[1767248157260,0.0477272,87686.0,87678.0,0.01140536]
[1767248157662,0.0477272,87686.0,87679.0,0.01140523]
[1767248158103,0.0477272,87686.0,87678.0,0.01140536]
[1767248158667,0.0477272,87686.0,87677.0,0.01140549]
[1767248158851,0.0477272,87686.0,87679.0,0.01140523]
[1767248159048,0.0477272,87686.0,87678.0,0.01140536]
[1767248160009,0.0477272,87686.0,87679.0,0.01140523]
[1767248160155,0.0477272,87686.0,87678.0,0.01140536]
[1767248160563,0.0477272,87686.0,87677.0,0.01140549]
[1767248160803,0.0477272,87686.0,87678.0,0.01140536]
[1767248161379,0.0477272,87686.0,87679.0,0.01140523]
[1767248161580,0.0477272,87686.0,87678.0,0.01140536]
[1767248162220,0.0477272,87686.0,87679.0,0.01140523]
[1767248162373,0.0477272,87686.0,87678.0,0.01140536]
[1767248162598,0.0477272,87686.0,87680.0,0.0114051]
[1767248162793,0.0477272,87686.0,87679.0,0.01140523]
[1767248164174,0.0477272,87686.0,87680.0,0.0114051]
[1767248164504,0.48673398,87690.0,87679.0,0.01140523]
[1767248164707,0.0001459,87691.0,87674.0,0.010891]
[1767248164708,0.0001459,87691.0,87683.0,0.10300251]
[1767248164889,0.0001459,87691.0,87683.0,0.01144]
[1767248165092,0.0001459,87691.0,87683.0,0.02269871]
[1767248165343,0.0001459,87691.0,87684.0,0.02281033]
[1767248167763,0.0001459,87691.0,87684.0,0.03421491]
[1767248167967,0.0001459,87691.0,87684.0,0.02281033]
[1767248168246,0.0001459,87691.0,87683.0,0.02269871]
[1767248168560,0.0001459,87691.0,87684.0,0.0342328]
[1767248178580,0.0001459,87691.0,87684.0,0.03417578]
[1767248179440,0.0001459,87691.0,87684.0,0.04558036]
[1767248179607,0.0001459,87691.0,87684.0,0.03417578]
[1767248179809,0.0001459,87691.0,87684.0,0.04558036]
[1767248180231,0.0001459,87691.0,87684.0,0.03417578]
[1767248180364,0.0001459,87691.0,87684.0,0.04558036]
[1767248181313,0.0001459,87691.0,87684.0,0.03417578]
[1767248181957,0.0001459,87691.0,87685.0,0.01140445]
[1767248182161,9e-07,87691.0,87684.0,0.04558036]
[1767248182560,9e-07,87691.0,87684.0,0.03417578]
[1767248182759,9e-07,87691.0,87683.0,0.02269871]
[1767248182965,9e-07,87691.0,87684.0,0.01140458]
[1767248183185,9e-07,87691.0,87684.0,0.0342328]
[1767248185205,9e-07,87691.0,87684.0,0.02739616]
[1767248185725,9e-07,87691.0,87683.0,0.02269871]
[1767248186880,9e-07,87691.0,87684.0,0.01140458]
[1767248188321,9e-07,87691.0,87683.0,0.02269871]
[1767248189728,9e-07,87691.0,87683.0,0.011294]
[1767248189934,9e-07,87691.0,87683.0,0.02269871]
[1767248190577,9e-07,87691.0,87683.0,0.011294]
[1767248191225,9e-07,87691.0,87683.0,0.02269871]
[1767248191420,9e-07,87691.0,87683.0,0.011294]
[1767248192681,9e-07,87691.0,87683.0,0.02269871]
[1767248193100,9e-07,87691.0,87684.0,0.01140458]
[1767248194172,9e-07,87691.0,87685.0,0.01140445]
[1767248194577,9e-07,87691.0,87684.0,0.01140458]
[1767248195301,9e-07,87691.0,87683.0,0.02269871]
[1767248196694,9e-07,87691.0,87684.0,0.01140458]
[1767248197091,9e-07,87691.0,87685.0,0.01140445]
[1767248197296,9e-07,87691.0,87684.0,0.01140458]
[1767248197432,9e-07,87691.0,87685.0,0.01140445]
[1767248198038,9e-07,87691.0,87684.0,0.01140458]
[1767248199414,9e-07,87691.0,87685.0,0.01140445]
[1767248200725,9e-07,87691.0,87684.0,0.01140458]
[1767248200899,9e-07,87691.0,87685.0,0.01140445]
[1767248202408,9e-07,87691.0,87684.0,0.01140458]
[1767248205487,9e-07,87691.0,87685.0,0.01140445]
[1767248209467,9e-07,87691.0,87684.0,0.01140458]
[1767248209874,9e-07,87691.0,87685.0,0.01140445]
[1767248214210,9e-07,87691.0,87684.0,0.01140458]
[1767248214709,9e-07,87691.0,87685.0,0.01140445]
[1767248215472,9e-07,87691.0,87684.0,0.01140458]
[1767248216489,9e-07,87691.0,87685.0,0.01140445]
[1767248221779,9e-07,87691.0,87686.0,0.01140432]
[1767248224803,9e-07,87691.0,87687.0,0.01140419]
[1767248227574,9e-07,87691.0,87688.0,0.01140406]
[1767248230828,9e-07,87691.0,87687.0,0.01140419]
[1767248231226,9e-07,87691.0,87685.0,0.01140445]
[1767248231523,9e-07,87691.0,87686.0,0.01140432]
[1767248231890,9e-07,87691.0,87688.0,0.01140406]
[1767248232092,9e-07,87691.0,87687.0,0.01140419]
[1767248232289,9e-07,87691.0,87688.0,0.01140406]
[1767248232871,9e-07,87691.0,87687.0,0.01140419]
[1767248233075,9e-07,87691.0,87688.0,0.01140406]
[1767248263511,0.04173552,87696.0,87687.0,0.00762077]
[1767248263718,0.04178796,87696.0,87687.0,0.01140419]
[1767248263928,0.000145,87687.0,87683.0,0.02269871]
[1767248264182,0.000145,87687.0,87683.0,0.02214871]
[1767248264391,0.51605046,87693.0,87683.0,0.02214871]
[1767248264583,0.51605046,87693.0,87685.0,0.01140445]
[1767248264756,0.04615775,87694.0,87685.0,0.01140445]
[1767248264955,0.04615775,87694.0,87672.0,0.01140615]
[1767248265156,0.01149244,87696.0,87673.0,0.01144]
[1767248265157,0.04615775,87681.0,87673.0,0.01144]
[1767248265447,0.04615775,87682.0,87673.0,0.01144]
[1767248266065,0.000145,87673.0,87668.0,0.05703284]
[1767248266274,0.04615775,87678.0,87674.0,0.01144]
[1767248266859,0.04615775,87678.0,87674.0,0.011295]
[1767248269447,0.56220821,87683.0,87674.0,0.011295]
[1767248269654,0.56220821,87683.0,87674.0,0.02270089]
[1767248270540,0.56220821,87683.0,87674.0,0.011295]
[1767248270740,0.56220821,87683.0,87674.0,0.02270089]
[1767248272573,0.56220821,87683.0,87674.0,0.011295]
[1767248273155,0.56220821,87683.0,87674.0,0.02270089]
[1767248274734,0.04615775,87683.0,87674.0,0.02270089]
[1767248275199,0.04615775,87683.0,87674.0,0.011295]
[1767248275604,0.04615775,87683.0,87674.0,0.02270089]
[1767248276031,0.04615775,87683.0,87674.0,0.011295]
[1767248277157,0.04615775,87683.0,87674.0,0.02270089]
[1767248277360,0.04615775,87683.0,87674.0,0.011295]
[1767248277562,0.04615775,87683.0,87674.0,0.02270089]
[1767248277786,0.04615775,87683.0,87674.0,0.011295]
[1767248277910,0.04615775,87683.0,87674.0,0.02270089]
[1767248279429,0.04615775,87683.0,87673.0,0.02284602]
[1767248279658,0.04615775,87683.0,87673.0,0.01144]
[1767248279860,0.04615775,87683.0,87673.0,0.02284602]
[1767248280107,0.04615775,87683.0,87673.0,0.01144]
[1767248280308,0.04615775,87683.0,87673.0,0.02284602]
[1767248283593,0.04615775,87683.0,87674.0,0.01140589]
[1767248283998,0.04615775,87683.0,87675.0,0.01140575]
[1767248284602,0.04615775,87683.0,87673.0,0.02284602]
[1767248284801,0.04615775,87683.0,87674.0,0.01140589]
[1767248285371,0.04615775,87683.0,87675.0,0.01140575]
[1767248285781,0.04615775,87683.0,87673.0,0.02284602]
[1767248287273,0.04615775,87683.0,87674.0,0.01140589]
[1767248288829,0.04615775,87683.0,87673.0,0.01144]
[1767248289732,0.04615775,87683.0,87673.0,0.02284602]
[1767248291058,0.04615775,87683.0,87674.0,0.01140589]
[1767248291438,0.04615775,87683.0,87673.0,0.02284602]
[1767248291634,0.04615775,87683.0,87673.0,0.01144]
[1767248291839,0.04615775,87683.0,87673.0,0.02284602]
[1767248292402,0.04615775,87683.0,87673.0,0.01144]
[1767248293856,0.04615775,87683.0,87673.0,0.02284602]
[1767248294064,0.04615775,87683.0,87673.0,0.01144]
[1767248294463,0.04615775,87683.0,87673.0,0.02284602]
[1767248295235,0.04615775,87683.0,87674.0,0.01140589]
[1767248295857,0.04615775,87683.0,87673.0,0.02284602]
[1767248296061,0.04615775,87683.0,87674.0,0.01140589]
[1767248296663,0.04615775,87683.0,87673.0,0.02284602]
[1767248298528,0.04615775,87683.0,87674.0,0.01140589]
[1767248299020,0.04615775,87683.0,87673.0,0.01144]
[1767248299220,0.04615775,87683.0,87673.0,0.02284602]
[1767248299420,0.04615775,87683.0,87673.0,0.01144]
[1767248299616,0.04615775,87683.0,87673.0,0.02284602]
[1767248300615,0.04615775,87683.0,87673.0,0.01144]
[1767248300821,0.04615775,87683.0,87673.0,0.02284602]
[1767248300982,0.04615775,87683.0,87673.0,0.01144]
[1767248301185,0.04615775,87683.0,87674.0,0.02287]
[1767248301387,0.04615775,87683.0,87673.0,0.02284602]
[1767248301889,0.04615775,87683.0,87674.0,0.01140589]
[1767248302084,0.04615775,87683.0,87673.0,0.02284602]
[1767248302508,0.04615775,87683.0,87674.0,0.01140589]
[1767248302751,0.04615775,87683.0,87673.0,0.02284602]
[1767248303148,0.04615775,87683.0,87674.0,0.01140589]
[1767248303647,0.04615775,87683.0,87673.0,0.02284602]
[1767248306283,0.04615775,87683.0,87674.0,0.01140589]
[1767248307175,0.04615775,87683.0,87673.0,0.02284602]
[1767248309034,0.04615775,87683.0,87674.0,0.01140589]
[1767248309270,0.04615775,87683.0,87673.0,0.02284602]
[1767248309466,0.04615775,87683.0,87674.0,0.01140589]
[1767248309851,0.04615775,87683.0,87673.0,0.02284602]
[1767248310354,0.04615775,87683.0,87673.0,0.01144]
[1767248310537,0.04615775,87683.0,87673.0,0.02284602]
[1767248311168,0.04615775,87683.0,87674.0,0.01140589]
[1767248311368,0.04615775,87683.0,87673.0,0.02284602]
[1767248313653,0.04615775,87683.0,87673.0,0.01144]
[1767248313854,0.04615775,87683.0,87673.0,0.02284602]
[1767248317834,0.04615775,87683.0,87673.0,0.01144]
[1767248317998,0.04615775,87683.0,87673.0,0.02284602]
[1767248318343,0.04615775,87683.0,87673.0,0.01144]
[1767248320618,0.04615775,87683.0,87673.0,0.02284602]
[1767248321625,0.04615775,87683.0,87673.0,0.01144]
[1767248329569,0.51625902,87684.0,87673.0,0.01144]
[1767248335423,0.01155244,87686.0,87673.0,0.01144]
[1767248335627,0.51625902,87683.0,87673.0,0.01144]
[1767248336571,0.51628061,87683.0,87673.0,0.01144]
[1767248339810,0.04664169,87682.0,87673.0,0.01144]
[1767248341138,0.04664169,87682.0,87673.0,0.02284602]
[1767248341636,0.04664169,87682.0,87673.0,0.01144]
[1767248341839,0.04664169,87682.0,87673.0,0.02284602]
[1767248343009,0.04664169,87682.0,87673.0,0.01144]
[1767248343209,0.04664169,87682.0,87673.0,0.02284602]
[1767248343633,0.04664169,87682.0,87673.0,0.01144]
[1767248344155,0.04664169,87682.0,87673.0,0.02284602]
[1767248344316,0.04664169,87682.0,87675.0,0.01140575]
[1767248344523,0.04664169,87682.0,87674.0,0.01140589]
[1767248345547,0.04664169,87682.0,87675.0,0.01140575]
[1767248345752,0.04664169,87682.0,87674.0,0.01140589]
[1767248346126,0.04664169,87682.0,87675.0,0.01140575]
[1767248347987,0.04664169,87682.0,87674.0,0.01140589]
[1767248348182,0.04664169,87682.0,87675.0,0.01140575]
[1767248348721,0.04664169,87682.0,87674.0,0.01140589]
[1767248348932,0.04664169,87682.0,87675.0,0.01140575]
[1767248351082,0.04609269,87682.0,87675.0,0.01140575]
[1767248351300,0.04609269,87682.0,87674.0,0.01140589]
[1767248351517,0.04609269,87682.0,87676.0,0.01140562]
[1767248352283,0.04609269,87682.0,87675.0,0.01140575]
[1767248355862,0.04609269,87682.0,87676.0,0.01140562]
[1767248356315,0.04609269,87682.0,87677.0,0.01140549]
[1767248357072,0.04609269,87682.0,87676.0,0.01140562]
[1767248358166,0.04609269,87682.0,87675.0,0.01140575]
[1767248360350,0.04609269,87682.0,87676.0,0.01140562]
[1767248360551,0.04609269,87682.0,87675.0,0.01140575]
[1767248360777,0.04609269,87682.0,87676.0,0.01140562]
[1767248360972,0.04609269,87682.0,87675.0,0.01140575]
[1767248361331,0.04609269,87682.0,87676.0,0.01140562]
[1767248361465,0.04609269,87682.0,87675.0,0.01140575]
[1767248363913,0.04609269,87682.0,87673.0,0.02284602]
[1767248364118,0.04609269,87682.0,87674.0,0.01140589]
[1767248364324,0.04609269,87682.0,87673.0,0.02284602]
[1767248365441,0.04609269,87682.0,87673.0,0.01144]
[1767248365658,0.04609269,87682.0,87673.0,0.02284602]
[1767248366958,0.04609269,87682.0,87674.0,0.01140589]
[1767248369098,0.04609269,87682.0,87673.0,0.02284602]
[1767248369507,0.04609269,87682.0,87674.0,0.01140589]
[1767248369814,0.04609269,87682.0,87673.0,0.02284602]
[1767248370413,0.04609269,87682.0,87674.0,0.01140589]
[1767248370655,0.04609269,87682.0,87673.0,0.02284602]
[1767248371198,0.04609269,87682.0,87674.0,0.01140589]
[1767248371631,0.04609269,87682.0,87673.0,0.02284602]
[1767248372567,0.04609269,87682.0,87674.0,0.01140589]
[1767248372743,0.04609269,87682.0,87673.0,0.02284602]
[1767248373631,0.04609269,87682.0,87673.0,0.01144]
[1767248373971,0.04609269,87682.0,87673.0,0.02284602]
[1767248375006,0.04609269,87682.0,87674.0,0.01140589]
[1767248375138,0.04609269,87682.0,87673.0,0.02284602]
[1767248375345,0.04609269,87682.0,87675.0,0.01140575]
[1767248375586,0.04609269,87682.0,87674.0,0.01140589]
[1767248376274,0.04609269,87682.0,87675.0,0.01140575]
[1767248376480,0.04609269,87682.0,87674.0,0.01140589]
[1767248376659,0.04609269,87682.0,87675.0,0.01140575]
[1767248376862,0.04609269,87682.0,87674.0,0.01140589]
[1767248377060,0.04609269,87682.0,87675.0,0.01140575]
[1767248378501,0.04609269,87682.0,87674.0,0.01140589]
[1767248379005,0.04609269,87682.0,87675.0,0.01140575]
[1767248381749,0.04609269,87682.0,87674.0,0.01140589]
[1767248381944,0.04609269,87682.0,87675.0,0.01140575]
[1767248384762,0.04609269,87682.0,87674.0,0.01140589]
[1767248384962,0.04609269,87682.0,87675.0,0.01140575]
[1767248385169,0.05940716,87687.0,87675.0,0.01140575]
[1767248385975,0.05940716,87687.0,87674.0,0.01140589]
[1767248386483,0.05940716,87687.0,87675.0,0.01140575]
[1767248387318,0.51628061,87685.0,87675.0,0.01140575]
[1767248388210,0.51628061,87685.0,87674.0,0.01140589]
[1767248388437,0.51628061,87685.0,87675.0,0.01140575]
[1767248389064,0.51628061,87685.0,87674.0,0.01140589]
[1767248389219,0.51628061,87685.0,87675.0,0.01140575]
[1767248389431,0.51628061,87685.0,87674.0,0.01140589]
[1767248389729,0.51628061,87685.0,87675.0,0.01140575]
[1767248390154,0.51628061,87685.0,87673.0,0.02284602]
[1767248390359,0.51628061,87683.0,87673.0,0.02284602]
[1767248391100,0.51628061,87683.0,87676.0,0.01140562]
[1767248391241,0.51628061,87686.0,87676.0,0.01140562]
[1767248391578,0.51628061,87686.0,87675.0,0.01140575]
[1767248392137,0.51628061,87686.0,87674.0,0.01140589]
[1767248392365,0.51628061,87684.0,87675.0,0.01140575]